Workbook

Sheet all transcripts (FC)-SupTable1
A1: Supplementary file 1. Differentially expressed transcripts modulated by RGMa treatment during the differentiation of C2C12 cells.
A2: Ensembl Transcript | B2: Ensembl Gene | C2: OTT Gene | D2: OTT Transcript | E2: Trancript name | F2: Gene name | G2: Transcript length (bp) | H2: Type | I2: baseMean(control) | J2: baseMean(treated) | K2: Fold Change | L2: log2(Fold Change) | M2: lfcSE | N2: stat | O2: pvalue | P2: padj
A3: ENSMUST00000212100.1 | B3: ENSMUSG00000034312.14 | C3: OTTMUSG00000029729.5 | D3: OTTMUST00000090068.3 | E3: Iqsec1-210 | F3: Iqsec1 | G3: 3500 | H3: protein_coding | I3: =(J3/K3) -> 0.09196125198 | J3: 56.79475326 | K3: =2^L3 -> 617.5943893 | L3: 9.270515836 | M3: 1.31605104 | N3: 7.044191719 | O3: 1.87E-12 | P3: 9.89e-10
A4: ENSMUST00000183148.7 | B4: ENSMUSG00000069601.14 | C4: OTTMUSG00000043361.8 | D4: OTTMUST00000113795.1 | E4: Ank3-239 | F4: Ank3 | G4: 7404 | H4: protein_coding | I4: 0.09196245195 | J4: 54.44526341 | K4: 592.0379704 | L4: 9.209545896 | M4: 1.289337656 | N4: 7.142850328 | O4: 9.14E-13 | P4: 4.96E-10
A5: ENSMUST00000163483.1 | B5: ENSMUSG00000020149.17 | C5: OTTMUSG00000005223.1 | D5: - | E5: Rab1a-206 | F5: Rab1a | G5: 2657 | H5: protein_coding | I5: 0.09198499087 | J5: 52.07891352 | K5: 566.1675131 | L5: 9.145085159 | M5: 1.429326778 | N5: 6.39817661 | O5: 1.57e-10 | P5: 5.60E-08
A6: ENSMUST00000182155.7 | B6: ENSMUSG00000069601.14 | C6: OTTMUSG00000043361.8 | D6: OTTMUST00000113793.1 | E6: Ank3-210 | F6: Ank3 | G6: 6375 | H6: protein_coding | I6: 0.0920022757 | J6: 124.0478781 | K6: 1348.313149 | L6: 10.39693989 | M6: 1.217239038 | N6: 8.541411806 | O6: 1.33e-17 | P6: 2.43E-14
A7: ENSMUST00000182593.7 | B7: ENSMUSG00000040225.15 | C7: OTTMUSG00000043447.13 | D7: OTTMUST00000113986.2 | E7: Prrc2c-209 | F7: Prrc2c | G7: 9022 | H7: protein_coding | I7: 0.09203624497 | J7: 214.6860878 | K7: 2332.625455 | L7: 11.18773896 | M7: 1.1953748 | N7: 9.359189229 | O7: 8.04E-21 | P7: 2.13E-17
A8: ENSMUST00000097864.8 | B8: ENSMUSG00000028580.15 | C8: OTTMUSG00000009596.3 | D8: OTTMUST00000022040.1 | E8: Pum1-203 | F8: Pum1 | G8: 4017 | H8: protein_coding | I8: 0.09205600061 | J8: 76.42888742 | K8: 830.2434052 | L8: 9.697390548 | M8: 1.2922757 | N8: 7.504118932 | O8: 6.18E-14 | P8: 4.61E-11
A9: ENSMUST00000155282.8 | B9: ENSMUSG00000034593.16 | C9: OTTMUSG00000016492.8 | D9: OTTMUST00000042678.3 | E9: Myo5a-214 | F9: Myo5a | G9: 6372 | H9: protein_coding | I9: 0.09205653091 | J9: 84.5183397 | K9: 918.1134556 | L9: 9.842528635 | M9: 1.359356735 | N9: 7.240578121 | O9: 4.47E-13 | P9: 2.66E-10
A10: ENSMUST00000212451.1 | B10: ENSMUSG00000031858.16 | C10: OTTMUSG00000062224.1 | D10: OTTMUST00000151817.1 | E10: Mau2-206 | F10: Mau2 | G10: 1931 | H10: protein_coding | I10: 0.09206086806 | J10: 73.96326057 | K10: 803.4169363 | L10: 9.650005064 | M10: 1.34527502 | N10: 7.173258197 | O10: 7.32E-13 | P10: 4.16E-10
A11: ENSMUST00000075836.11 | B11: ENSMUSG00000028556.15 | C11: OTTMUSG00000008703.5 | D11: OTTMUST00000019765.2 | E11: Dock7-202 | F11: Dock7 | G11: 6704 | H11: protein_coding | I11: 0.09206113375 | J11: 233.1697865 | K11: 2532.771181 | L11: 11.30650103 | M11: 1.327668125 | N11: 8.516059713 | O11: 1.65e-17 | P11: 2.81E-14
A12: ENSMUST00000217647.1 | B12: ENSMUSG00000034007.10 | C12: OTTMUSG00000063109.1 | D12: OTTMUST00000153602.1 | E12: Scaper-205 | F12: Scaper | G12: 4370 | H12: protein_coding | I12: 0.09206877485 | J12: 73.03593938 | K12: 793.2758907 | L12: 9.631678893 | M12: 1.232943838 | N12: 7.811936439 | O12: 5.63E-15 | P12: 5.17e-12
A13: ENSMUST00000160260.8 | B13: ENSMUSG00000026565.18 | C13: OTTMUSG00000034833.8 | D13: OTTMUST00000088539.3 | E13: Pou2f1-208 | F13: Pou2f1 | G13: 13022 | H13: protein_coding | I13: 0.09207129272 | J13: 343.5353696 | K13: 3731.188728 | L13: 11.86541962 | M13: 1.186908444 | N13: 9.996912294 | O13: 1.57e-23 | P13: 1.25E-19
A14: ENSMUST00000174817.7 | B14: ENSMUSG00000020661.15 | C14: OTTMUSG00000037610.8 | D14: OTTMUST00000097006.1 | E14: Dnmt3a-218 | F14: Dnmt3a | G14: 8737 | H14: protein_coding | I14: 0.09207532859 | J14: 48.44636966 | K14: 526.1601604 | L14: 9.039358205 | M14: 3.907659934 | N14: 2.313240752 | O14: 0.020709406 | P14: 0.126392758
A15: ENSMUST00000167084.8 | B15: ENSMUSG00000023079.14 | C15: OTTMUSG00000055742.3 | D15: - | E15: Gtf2ird1-208 | F15: Gtf2ird1 | G15: 3283 | H15: protein_coding | I15: 0.09208043073 | J15: 78.30750262 | K15: 850.4250252 | L15: 9.732040241 | M15: 3.907316537 | N15: 2.490722251 | O15: 0.012748374 | P15: 0.0944742
A16: ENSMUST00000018645.12 | B16: ENSMUSG00000018501.17 | C16: OTTMUSG00000005855.7 | D16: OTTMUST00000013021.1 | E16: Ncor1-201 | F16: Ncor1 | G16: 9037 | H16: protein_coding | I16: 0.09208161086 | J16: 150.9602317 | K16: 1639.417798 | L16: 10.67896785 | M16: 3.907048353 | N16: 2.733257152 | O16: 0.006271135 | P16: 0.061029288
A17: ENSMUST00000209068.1 | B17: ENSMUSG00000039361.11 | C17: OTTMUSG00000059751.2 | D17: OTTMUST00000146467.1 | E17: Picalm-215 | F17: Picalm | G17: 3511 | H17: protein_coding | I17: 0.09208289308 | J17: 77.70572994 | K17: 843.8671651 | L17: 9.720872109 | M17: 3.907320867 | N17: 2.487861232 | O17: 0.012851387 | P17: 0.094913422
A18: ENSMUST00000021662.11 | B18: ENSMUSG00000021236.16 | C18: OTTMUSG00000027582.1 | D18: - | E18: Entpd5-201 | F18: Entpd5 | G18: 4931 | H18: protein_coding | I18: 0.09208294056 | J18: 55.78886634 | K18: 605.8545264 | L18: 9.242827615 | M18: 3.907541472 | N18: 2.365381834 | O18: 0.01801149 | P18: 0.116647433
A19: ENSMUST00000102754.10 | B19: ENSMUSG00000026991.20 | C19: OTTMUSG00000012706.4 | D19: OTTMUST00000030307.1 | E19: Pkp4-202 | F19: Pkp4 | G19: 4614 | H19: protein_coding | I19: 0.0920833311 | J19: 76.99789578 | K19: 836.1762641 | L19: 9.707663281 | M19: 3.907326032 | N19: 2.484477415 | O19: 0.012974174 | P19: 0.09543599
A20: ENSMUST00000119149.7 | B20: ENSMUSG00000078880.10 | C20: OTTMUSG00000016254.2 | D20: OTTMUST00000038972.1 | E20: Gm14308-203 | F20: Gm14308 | G20: 1458 | H20: protein_coding | I20: 0.09208508568 | J20: 73.02126634 | K20: 792.9760373 | L20: 9.63113346 | M20: 3.907356907 | N20: 2.4648717 | O20: 0.013706232 | P20: 0.098186836
A21: ENSMUST00000051873.14 | B21: ENSMUSG00000025648.18 | C21: OTTMUSG00000027454.9 | D21: OTTMUST00000067934.2 | E21: Pfkfb4-201 | F21: Pfkfb4 | G21: 3316 | H21: protein_coding | I21: 0.09208586166 | J21: 46.83085742 | K21: 508.5564339 | L21: 8.990264067 | M21: 3.907691107 | N21: 2.300658834 | O21: 0.021410923 | P21: 0.129207579
A22: ENSMUST00000056508.11 | B22: ENSMUSG00000004319.15 | C22: OTTMUSG00000022342.2 | D22: OTTMUST00000053284.1 | E22: Clcn3-202 | F22: Clcn3 | G22: 5684 | H22: protein_coding | I22: 0.09208688347 | J22: 62.29990386 | K22: 676.5339592 | L22: 9.402018543 | M22: 3.90745976 | N22: 2.406171559 | O22: 0.016120692 | P22: 0.108724658
A23: ENSMUST00000088200.12 | B23: ENSMUSG00000044217.17 | C23: OTTMUSG00000071102.1 | D23: - | E23: Aqp5-201 | F23: Aqp5 | G23: 1376 | H23: protein_coding | I23: 0.09208832 | J23: 54.22066101 | K23: 588.7897728 | L23: 9.201608802 | M23: 3.90756414 | N23: 2.354819645 | O23: 0.018531698 | P23: 0.118741243
A24: ENSMUST00000106643.7 | B24: ENSMUSG00000030770.15 | C24: OTTMUSG00000024812.3 | D24: OTTMUST00000061109.1 | E24: Parva-203 | F24: Parva | G24: 2222 | H24: protein_coding | I24: 0.09210302306 | J24: 85.38367455 | K24: 927.045299 | L24: 9.856496026 | M24: 1.292906233 | N24: 7.623519612 | O24: 2.47E-14 | P24: 2.10E-11
A25: ENSMUST00000040711.14 | B25: ENSMUSG00000049134.15 | C25: OTTMUSG00000036778.4 | D25: OTTMUST00000094389.2 | E25: Nrap-201 | F25: Nrap | G25: 5334 | H25: protein_coding | I25: 0.09212921962 | J25: 95.27619896 | K25: 1034.15832 | L25: 10.01424135 | M25: 1.225404683 | N25: 8.172191185 | O25: 3.03E-16 | P25: 3.61E-13
A26: ENSMUST00000039892.8 | B26: ENSMUSG00000039201.9 | C26: OTTMUSG00000018118.3 | D26: OTTMUST00000043740.2 | E26: Tbc1d25-201 | F26: Tbc1d25 | G26: 2648 | H26: protein_coding | I26: 0.09215674985 | J26: 56.17125294 | K26: 609.5185977 | L26: 9.251526431 | M26: 1.36582029 | N26: 6.773604478 | O26: 1.26e-11 | P26: 5.45E-09
A27: ENSMUST00000230614.1 | B27: ENSMUSG00000049076.11 | C27: OTTMUSG00000071317.2 | D27: OTTMUST00000172676.1 | E27: Acap2-203 | F27: Acap2 | G27: 3414 | H27: protein_coding | I27: 0.09217055816 | J27: 48.78071893 | K27: 529.2440439 | L27: 9.047789318 | M27: 1.296609568 | N27: 6.978036828 | O27: 2.99e-12 | P27: 1.49E-09
A28: ENSMUST00000205765.1 | B28: ENSMUSG00000022521.10 | C28: OTTMUSG00000048175.5 | D28: OTTMUST00000143287.1 | E28: Crebbp-205 | F28: Crebbp | G28: 7749 | H28: protein_coding | I28: 0.8290846143 | J28: 78.41348446 | K28: 94.57838574 | L28: 6.563438613 | M28: 0.908077691 | N28: 7.227838187 | O28: 4.91E-13 | P28: 2.86E-10
A29: ENSMUST00000224799.1 | B29: ENSMUSG00000024533.16 | C29: OTTMUSG00000068456.2 | D29: OTTMUST00000165495.1 | E29: Spire1-207 | F29: Spire1 | G29: 2059 | H29: protein_coding | I29: 1.323326885 | J29: 70.78165301 | K29: 53.48765587 | L29: 5.741134073 | M29: 0.91318054 | N29: 6.286964976 | O29: 3.24E-10 | P29: 1.06E-07
A30: ENSMUST00000171937.1 | B30: ENSMUSG00000058230.12 | C30: OTTMUSG00000048052.2 | D30: - | E30: Arhgap35-202 | F30: Arhgap35 | G30: 6251 | H30: protein_coding | I30: 2.731285405 | J30: 268.6069387 | K30: 98.34451509 | L30: 6.619772687 | M30: 1.987627107 | N30: 3.330490243 | O30: 0.000866932 | P30: 0.016969255
A31: ENSMUST00000194877.5 | B31: ENSMUSG00000037461.10 | C31: OTTMUSG00000051636.5 | D31: OTTMUST00000130339.3 | E31: Ints7-206 | F31: Ints7 | G31: 3069 | H31: nonsense_mediated_decay | I31: 3.182501245 | J31: 68.33229523 | K31: 21.47125483 | L31: 4.424334603 | M31: 1.368071566 | N31: 3.233993538 | O31: 0.001220722 | P31: 0.02100881
A32: ENSMUST00000098816.9 | B32: ENSMUSG00000031596.15 | C32: OTTMUSG00000061152.1 | D32: OTTMUST00000078364.1 | E32: Slc7a2-202 | F32: Slc7a2 | G32: 3677 | H32: protein_coding | I32: 3.230805108 | J32: 72.02667138 | K32: 22.29372215 | L32: 4.478565603 | M32: 1.025051657 | N32: 4.369112105 | O32: 1.25E-05 | P32: 0.000870168
A33: ENSMUST00000114252.7 | B33: ENSMUSG00000024330.16 | C33: OTTMUSG00000022512.4 | D33: - | E33: Col11a2-202 | F33: Col11a2 | G33: 5620 | H33: protein_coding | I33: 3.847194642 | J33: 51.63660875 | K33: 13.42188622 | L33: 3.746515527 | M33: 1.438098548 | N33: 2.60518692 | O33: 0.009182415 | P33: 0.077428954
A34: ENSMUST00000164334.7 | B34: ENSMUSG00000000631.20 | C34: OTTMUSG00000000073.14 | D34: OTTMUST00000090553.2 | E34: Myo18a-220 | F34: Myo18a | G34: 5381 | H34: protein_coding | I34: 4.033251234 | J34: 118.4323902 | K34: 29.36400024 | L34: 4.875976614 | M34: 2.103640022 | N34: 2.31787595 | O34: 0.020456064 | P34: 0.125573701
A35: ENSMUST00000111714.7 | B35: ENSMUSG00000027082.15 | C35: OTTMUSG00000013407.2 | D35: OTTMUST00000032384.1 | E35: Tfpi-204 | F35: Tfpi | G35: 3614 | H35: protein_coding | I35: 5.078053304 | J35: 50.10103332 | K35: 9.866188936 | L35: 3.302492915 | M35: 1.515740604 | N35: 2.17879821 | O35: 0.029346662 | P35: 0.15650897
A36: ENSMUST00000185800.6 | B36: ENSMUSG00000037608.16 | C36: OTTMUSG00000049448.2 | D36: OTTMUST00000126056.1 | E36: Bclaf1-203 | F36: Bclaf1 | G36: 3142 | H36: protein_coding | I36: 5.361388686 | J36: 54.10409123 | K36: 10.09143235 | L36: 3.335059056 | M36: 1.522775048 | N36: 2.190119322 | O36: 0.028515584 | P36: 0.153565813
A37: ENSMUST00000188345.1 | B37: ENSMUSG00000042699.11 | C37: OTTMUSG00000049714.2 | D37: OTTMUST00000126629.2 | E37: Dhx9-204 | F37: Dhx9 | G37: 2346 | H37: protein_coding | I37: 5.488174601 | J37: 59.01710341 | K37: 10.75350325 | L37: 3.426734829 | M37: 1.077501497 | N37: 3.180259924 | O37: 0.00147143 | P37: 0.02376504
A38: ENSMUST00000110324.7 | B38: ENSMUSG00000027386.9 | C38: OTTMUSG00000015350.1 | D38: OTTMUST00000036379.1 | E38: Fbln7-202 | F38: Fbln7 | G38: 3228 | H38: protein_coding | I38: 5.50398466 | J38: 65.95222027 | K38: 11.98263155 | L38: 3.582872874 | M38: 2.224393323 | N38: 1.610719128 | O38: 0.107240955 | P38: 0.330666583
A39: ENSMUST00000117913.7 | B39: ENSMUSG00000078945.10 | C39: OTTMUSG00000028711.1 | D39: OTTMUST00000071109.1 | E39: Naip2-202 | F39: Naip2 | G39: 4823 | H39: protein_coding | I39: 5.526977368 | J39: 57.30756821 | K39: 10.36869963 | L39: 3.374163068 | M39: 1.492509367 | N39: 2.260731586 | O39: 0.023775883 | P39: 0.137363453
A40: ENSMUST00000109091.1 | B40: ENSMUSG00000020387.15 | C40: OTTMUSG00000005611.4 | D40: OTTMUST00000041623.1 | E40: Jade2-203 | F40: Jade2 | G40: 6099 | H40: protein_coding | I40: 5.978482994 | J40: 51.67210874 | K40: 8.643013418 | L40: 3.111534401 | M40: 3.723701043 | N40: 0.835602634 | O40: 0.403378486 | P40: 0.678890489
A41: ENSMUST00000203471.2 | B41: ENSMUSG00000029191.16 | C41: OTTMUSG00000038036.8 | D41: OTTMUST00000097962.5 | E41: Rfc1-202 | F41: Rfc1 | G41: 3952 | H41: protein_coding | I41: 6.422349718 | J41: 81.34046018 | K41: 12.66521814 | L41: 3.662800021 | M41: 3.733399097 | N41: 0.981089866 | O41: 0.326548427 | P41: 0.611729136
A42: ENSMUST00000215842.1 | B42: ENSMUSG00000028416.12 | C42: OTTMUSG00000006605.2 | D42: - | E42: Bag1-204 | F42: Bag1 | G42: 1068 | H42: protein_coding | I42: 6.633490786 | J42: 147.2822419 | K42: 22.20282603 | L42: 4.472671413 | M42: 2.345825866 | N42: 1.906651077 | O42: 0.056565786 | P42: 0.230978574
A43: ENSMUST00000224672.1 | B43: ENSMUSG00000021733.10 | C43: OTTMUSG00000068990.2 | D43: OTTMUST00000166949.1 | E43: Slc4a7-212 | F43: Slc4a7 | G43: 4057 | H43: nonsense_mediated_decay | I43: 7.343634545 | J43: 71.25150221 | K43: 9.702484754 | L43: 3.278354261 | M43: 3.732671286 | N43: 0.878286356 | O43: 0.379788338 | P43: 0.659302789
A44: ENSMUST00000129857.7 | B44: ENSMUSG00000027291.15 | C44: OTTMUSG00000015284.1 | D44: OTTMUST00000036218.1 | E44: Vps39-204 | F44: Vps39 | G44: 4055 | H44: processed_transcript | I44: 7.396264399 | J44: 52.94273342 | K44: 7.15803689 | L44: 2.839563979 | M44: 2.468360369 | N44: 1.15038469 | O44: 0.249985463 | P44: 0.531740868
A45: ENSMUST00000165079.7 | B45: ENSMUSG00000002803.14 | C45: OTTMUSG00000066134.3 | D45: - | E45: Btbd6-202 | F45: Btbd6 | G45: 1975 | H45: protein_coding | I45: 7.694104629 | J45: 75.27300644 | K45: 9.783205463 | L45: 3.290307241 | M45: 2.397933021 | N45: 1.372143097 | O45: 0.170018896 | P45: 0.431468165
A46: ENSMUST00000144153.7 | B46: ENSMUSG00000033909.17 | C46: OTTMUSG00000003884.4 | D46: OTTMUST00000008569.3 | E46: Usp36-204 | F46: Usp36 | G46: 3391 | H46: protein_coding | I46: 7.976717539 | J46: 47.52773284 | K46: 5.958307112 | L46: 2.574902487 | M46: 1.098091606 | N46: 2.344888598 | O46: 0.019032765 | P46: 0.120542485
A47: ENSMUST00000213403.1 | B47: ENSMUSG00000037419.9 | C47: OTTMUSG00000062539.1 | D47: OTTMUST00000152346.1 | E47: Endod1-202 | F47: Endod1 | G47: 1605 | H47: processed_transcript | I47: 8.447447723 | J47: 54.43246005 | K47: 6.44365752 | L47: 2.687879817 | M47: 1.60478904 | N47: 1.674911623 | O47: 0.093951573 | P47: 0.306484792
A48: ENSMUST00000123502.7 | B48: ENSMUSG00000024018.18 | C48: OTTMUSG00000033064.4 | D48: OTTMUST00000082573.1 | E48: Ccdc167-201 | F48: Ccdc167 | G48: 3090 | H48: nonsense_mediated_decay | I48: 8.589203359 | J48: 49.17274146 | K48: 5.724947868 | L48: 2.517262556 | M48: 1.614030371 | N48: 1.55961288 | O48: 0.118851391 | P48: 0.350934513
A49: ENSMUST00000057495.9 | B49: ENSMUSG00000035762.11 | C49: OTTMUSG00000044482.2 | D49: OTTMUST00000117107.2 | E49: Tmem161b-201 | F49: Tmem161b | G49: 2857 | H49: protein_coding | I49: 9.315265327 | J49: 47.68220534 | K49: 5.118716823 | L49: 2.355782196 | M49: 3.732088718 | N49: 0.631223525 | O49: 0.527894382 | P49: 0.770512641
A50: ENSMUST00000030357.14 | B50: ENSMUSG00000028614.14 | C50: OTTMUSG00000008842.5 | D50: OTTMUST00000020158.3 | E50: Ndc1-201 | F50: Ndc1 | G50: 2354 | H50: nonsense_mediated_decay | I50: 9.608118593 | J50: 58.34346971 | K50: 6.07230949 | L50: 2.602245323 | M50: 2.358510462 | N50: 1.103342709 | O50: 0.269878366 | P50: 0.554219207
A51: ENSMUST00000162825.7 | B51: ENSMUSG00000033487.14 | C51: OTTMUSG00000034682.3 | D51: OTTMUST00000088042.1 | E51: Fndc3a-205 | F51: Fndc3a | G51: 4100 | H51: protein_coding | I51: 9.910459403 | J51: 61.05403204 | K51: 6.160565273 | L51: 2.623062734 | M51: 0.430415798 | N51: 6.094252921 | O51: 1.10E-09 | P51: 3.12E-07
A52: ENSMUST00000209772.1 | B52: ENSMUSG00000031639.12 | C52: OTTMUSG00000061136.1 | D52: OTTMUST00000149298.1 | E52: Tlr3-205 | F52: Tlr3 | G52: 4096 | H52: protein_coding | I52: 10.1603299 | J52: 73.70009779 | K52: 7.2537111 | L52: 2.858719287 | M52: 3.730887835 | N52: 0.766230295 | O52: 0.443539285 | P52: 0.710824968
A53: ENSMUST00000133040.2 | B53: ENSMUSG00000061462.17 | C53: OTTMUSG00000005776.11 | D53: OTTMUST00000038018.4 | E53: Obscn-206 | F53: Obscn | G53: 2566 | H53: protein_coding | I53: 10.22909403 | J53: 46.84104928 | K53: 4.579198231 | L53: 2.19509502 | M53: 0.524634222 | N53: 4.184048483 | O53: 2.86E-05 | P53: 0.001592405
A54: ENSMUST00000108251.8 | B54: ENSMUSG00000020716.16 | C54: OTTMUSG00000000164.7 | D54: OTTMUST00000000506.3 | E54: Nf1-202 | F54: Nf1 | G54: 9217 | H54: protein_coding | I54: 10.46211177 | J54: 58.84872401 | K54: 5.624937425 | L54: 2.491837047 | M54: 0.612924718 | N54: 4.065486307 | O54: 4.79E-05 | P54: 0.002362454
A55: ENSMUST00000145344.1 | B55: ENSMUSG00000031561.16 | C55: OTTMUSG00000021119.7 | D55: OTTMUST00000049982.2 | E55: Tenm3-205 | F55: Tenm3 | G55: 2526 | H55: retained_intron | I55: 10.52545546 | J55: 56.0903539 | K55: 5.329019167 | L55: 2.413870022 | M55: 0.661886616 | N55: 3.646953973 | O55: 0.000265367 | P55: 0.007548431
A56: ENSMUST00000111991.8 | B56: ENSMUSG00000032480.17 | C56: OTTMUSG00000034137.6 | D56: OTTMUST00000086421.2 | E56: Dhx30-202 | F56: Dhx30 | G56: 3829 | H56: protein_coding | I56: 10.95653757 | J56: 50.65414452 | K56: 4.62318905 | L56: 2.208888358 | M56: 1.668693411 | N56: 1.323723306 | O56: 0.185594955 | P56: 0.452788675
A57: ENSMUST00000106633.9 | B57: ENSMUSG00000041654.15 | C57: OTTMUSG00000003310.3 | D57: OTTMUST00000007118.1 | E57: Slc39a11-203 | F57: Slc39a11 | G57: 2688 | H57: protein_coding | I57: 11.12894247 | J57: 50.15081629 | K57: 4.50634159 | L57: 2.171956677 | M57: 1.16695839 | N57: 1.861211757 | O57: 0.062714279 | P57: 0.24493273
A58: ENSMUST00000161582.7 | B58: ENSMUSG00000020181.16 | C58: OTTMUSG00000034560.5 | D58: OTTMUST00000087678.2 | E58: Nav3-204 | F58: Nav3 | G58: 6371 | H58: processed_transcript | I58: 11.57825418 | J58: 48.91636349 | K58: 4.224847954 | L58: 2.078899422 | M58: 1.239438419 | N58: 1.677291418 | O58: 0.09348551 | P58: 0.305702103
A59: ENSMUST00000100473.4 | B59: ENSMUSG00000060012.9 | C59: OTTMUSG00000068824.2 | D59: - | E59: Kif13b-201 | F59: Kif13b | G59: 5603 | H59: protein_coding | I59: 11.58799771 | J59: 51.2724778 | K59: 4.424619257 | L59: 2.145553315 | M59: 0.547010308 | N59: 3.922327028 | O59: 8.77E-05 | P59: 0.003527879
A60: ENSMUST00000225380.1 | B60: ENSMUSG00000022052.9 | C60: OTTMUSG00000068886.2 | D60: OTTMUST00000166634.1 | E60: Ppp2r2a-204 | F60: Ppp2r2a | G60: 1988 | H60: protein_coding | I60: 11.66324258 | J60: 95.36362709 | K60: 8.176424906 | L60: 3.031470171 | M60: 2.433757799 | N60: 1.24559238 | O60: 0.212914081 | P60: 0.488371673
A61: ENSMUST00000053273.14 | B61: ENSMUSG00000030287.15 | C61: OTTMUSG00000025625.6 | D61: OTTMUST00000063040.3 | E61: Itpr2-201 | F61: Itpr2 | G61: 8331 | H61: protein_coding | I61: 11.70907559 | J61: 52.72958378 | K61: 4.503308855 | L61: 2.170985427 | M61: 2.456658564 | N61: 0.883714758 | O61: 0.376850212 | P61: 0.656624926
A62: ENSMUST00000182225.7 | B62: ENSMUSG00000032525.15 | C62: OTTMUSG00000043287.8 | D62: OTTMUST00000113560.2 | E62: Nktr-205 | F62: Nktr | G62: 2942 | H62: protein_coding | I62: 11.76088844 | J62: 54.21519716 | K62: 4.609787556 | L62: 2.204700265 | M62: 0.447541175 | N62: 4.926251238 | O62: 8.38E-07 | P62: 0.00010469
A63: ENSMUST00000147588.1 | B63: ENSMUSG00000003847.16 | C63: OTTMUSG00000033607.2 | D63: OTTMUST00000084674.2 | E63: Nfat5-208 | F63: Nfat5 | G63: 5481 | H63: protein_coding | I63: 11.77459658 | J63: 86.53666116 | K63: 7.349437457 | L63: 2.877633827 | M63: 0.38442842 | N63: 7.485486695 | O63: 7.13E-14 | P63: 5.15E-11
A64: ENSMUST00000131717.1 | B64: ENSMUSG00000013033.16 | C64: OTTMUSG00000032839.2 | D64: OTTMUST00000081807.1 | E64: Adgrl1-204 | F64: Adgrl1 | G64: 5152 | H64: protein_coding | I64: 11.84422782 | J64: 107.2466067 | K64: 9.05475716 | L64: 3.17867595 | M64: 0.438550133 | N64: 7.248147267 | O64: 4.23E-13 | P64: 2.58E-10
A65: ENSMUST00000170035.7 | B65: ENSMUSG00000022636.13 | C65: OTTMUSG00000036124.2 | D65: OTTMUST00000092848.1 | E65: Alcam-207 | F65: Alcam | G65: 1917 | H65: protein_coding | I65: 11.85632286 | J65: 58.77406212 | K65: 4.957191434 | L65: 2.309522973 | M65: 1.060109925 | N65: 2.178569334 | O65: 0.029363676 | P65: 0.156564707
A66: ENSMUST00000113158.7 | B66: ENSMUSG00000068966.10 | C66: OTTMUSG00000012578.3 | D66: OTTMUST00000029971.3 | E66: Zbtb34-202 | F66: Zbtb34 | G66: 6602 | H66: protein_coding | I66: 11.86220337 | J66: 74.29235628 | K66: 6.262947442 | L66: 2.646841772 | M66: 3.730232937 | N66: 0.709564742 | O66: 0.47797409 | P66: 0.736377675
A67: ENSMUST00000110048.7 | B67: ENSMUSG00000020454.17 | C67: OTTMUSG00000000763.19 | D67: OTTMUST00000001472.1 | E67: Eif4enif1-202 | F67: Eif4enif1 | G67: 3712 | H67: protein_coding | I67: =(J67/K67) -> 12.00560606 | J67: 69.18621341 | K67: =2^L67 -> 5.762825555 | L67: 2.526776349 | M67: 1.059592653 | N67: 2.384667676 | O67: 0.017094556 | P67: 0.112961393
A68: ENSMUST00000171791.7 | B68: ENSMUSG00000034751.16 | C68: OTTMUSG00000035371.12 | D68: OTTMUST00000090374.3 | E68: Mast4-212 | F68: Mast4 | G68: 7647 | H68: protein_coding | I68: 12.05106777 | J68: 62.36669464 | K68: 5.175200725 | L68: 2.37161482 | M68: 0.874730882 | N68: 2.71125082 | O68: 0.00670299 | P68: 0.063226504
A69: ENSMUST00000140197.2 | B69: ENSMUSG00000038290.15 | C69: OTTMUSG00000006198.7 | D69: OTTMUST00000013974.7 | E69: Smg6-204 | F69: Smg6 | G69: 714 | H69: protein_coding | I69: 12.13150906 | J69: 48.63907696 | K69: 4.009317945 | L69: 2.00335683 | M69: 1.179614828 | N69: 1.698314384 | O69: 0.089448441 | P69: 0.298160433
A70: ENSMUST00000058096.13 | B70: ENSMUSG00000057406.16 | C70: OTTMUSG00000025044.5 | D70: OTTMUST00000061621.1 | E70: Nsd2-201 | F70: Nsd2 | G70: 4633 | H70: protein_coding | I70: 12.4045782 | J70: 88.45707876 | K70: 7.13100255 | L70: 2.83410492 | M70: 2.48171245 | N70: 1.14199569 | O70: 0.253455811 | P70: 0.535181371
A71: ENSMUST00000234557.1 | B71: ENSMUSG00000002504.15 | C71: OTTMUSG00000073006.3 | D71: OTTMUST00000176655.1 | E71: Slc9a3r2-205 | F71: Slc9a3r2 | G71: 2035 | H71: protein_coding | I71: 12.99915492 | J71: 63.34153117 | K71: 4.872742232 | L71: 2.284733906 | M71: 2.43898433 | N71: 0.936756287 | O71: 0.348883935 | P71: 0.633091912
A72: ENSMUST00000177023.7 | B72: ENSMUSG00000028059.15 | C72: OTTMUSG00000042225.12 | D72: OTTMUST00000110938.2 | E72: Arhgef2-225 | F72: Arhgef2 | G72: 757 | H72: protein_coding | I72: 13.04775702 | J72: 59.02933633 | K72: 4.524098373 | L72: 2.1776303 | M72: 1.180351672 | N72: 1.844899578 | O72: 0.065052148 | P72: 0.249685318
A73: ENSMUST00000160881.1 | B73: ENSMUSG00000026698.8 | C73: OTTMUSG00000029439.5 | D73: OTTMUST00000073019.2 | E73: Pigc-204 | F73: Pigc | G73: 704 | H73: protein_coding | I73: 13.07512298 | J73: 49.32858788 | K73: 3.772705461 | L73: 1.915599472 | M73: 1.13227618 | N73: 1.691812922 | O73: 0.090681649 | P73: 0.300696516
A74: ENSMUST00000115321.8 | B74: ENSMUSG00000039841.14 | C74: OTTMUSG00000021280.3 | D74: OTTMUST00000050452.1 | E74: Zfp800-203 | F74: Zfp800 | G74: 2699 | H74: protein_coding | I74: 13.08528503 | J74: 61.36085243 | K74: 4.689301937 | L74: 2.229373175 | M74: 2.431423717 | N74: 0.916900316 | O74: 0.359194878 | P74: 0.642227089
A75: ENSMUST00000111625.1 | B75: ENSMUSG00000027075.16 | C75: OTTMUSG00000013724.4 | D75: OTTMUST00000032895.1 | E75: Slc43a1-203 | F75: Slc43a1 | G75: 2487 | H75: protein_coding | I75: 13.38926275 | J75: 52.71162434 | K75: 3.936857863 | L75: 1.977044626 | M75: 1.159155865 | N75: 1.705589978 | O75: 0.088084447 | P75: 0.296243405
A76: ENSMUST00000114242.8 | B76: ENSMUSG00000024335.19 | C76: OTTMUSG00000017279.9 | D76: OTTMUST00000041915.1 | E76: Brd2-203 | F76: Brd2 | G76: 4483 | H76: protein_coding | I76: 13.95926682 | J76: 58.19740047 | K76: 4.169087189 | L76: 2.059731544 | M76: 3.73007627 | N76: 0.552195557 | O76: 0.580814378 | P76: 0.804083862
A77: ENSMUST00000043112.8 | B77: ENSMUSG00000037536.14 | C77: OTTMUSG00000069655.2 | D77: OTTMUST00000168412.1 | E77: Fbxo34-201 | F77: Fbxo34 | G77: 2937 | H77: protein_coding | I77: 14.00586097 | J77: 63.93365378 | K77: 4.564778554 | L77: 2.190544874 | M77: 1.140151441 | N77: 1.921275362 | O77: 0.054697002 | P77: 0.226605935
A78: ENSMUST00000227737.1 | B78: ENSMUSG00000022892.11 | C78: OTTMUSG00000069475.11 | D78: OTTMUST00000167979.1 | E78: App-207 | F78: App | G78: 2827 | H78: protein_coding | I78: 14.10070385 | J78: 50.22385067 | K78: 3.561797426 | L78: 1.832605467 | M78: 1.234069874 | N78: 1.485009484 | O78: 0.137541312 | P78: 0.382139296
A79: ENSMUST00000173895.7 | B79: ENSMUSG00000042719.17 | C79: OTTMUSG00000026322.3 | D79: OTTMUST00000097429.1 | E79: Naa25-205 | F79: Naa25 | G79: 2556 | H79: nonsense_mediated_decay | I79: 14.14518505 | J79: 80.21578132 | K79: 5.670889496 | L79: 2.503575044 | M79: 0.812952563 | N79: 3.079607786 | O79: 0.002072734 | P79: 0.029625559
A80: ENSMUST00000100208.8 | B80: ENSMUSG00000075415.13 | C80: OTTMUSG00000011868.4 | D80: OTTMUST00000028123.1 | E80: Fnbp1-204 | F80: Fnbp1 | G80: 1859 | H80: protein_coding | I80: 14.2878665 | J80: 57.27009069 | K80: 4.008302476 | L80: 2.002991382 | M80: 1.133842403 | N80: 1.766551839 | O80: 0.077303313 | P80: 0.273804087
A81: ENSMUST00000183006.3 | B81: ENSMUSG00000026131.18 | C81: OTTMUSG00000044431.13 | D81: OTTMUST00000116993.3 | E81: Dst-210 | F81: Dst | G81: 1221 | H81: processed_transcript | I81: 14.31875944 | J81: 47.16349834 | K81: 3.293825735 | L81: 1.719764229 | M81: 0.690364179 | N81: 2.491097136 | O81: 0.01273493 | P81: 0.094433245
A82: ENSMUST00000231578.1 | B82: ENSMUSG00000021585.10 | C82: OTTMUSG00000067486.2 | D82: OTTMUST00000173272.1 | E82: Cast-213 | F82: Cast | G82: 1571 | H82: protein_coding | I82: 14.37072642 | J82: 49.46491117 | K82: 3.442060597 | L82: 1.783272496 | M82: 0.698264618 | N82: 2.553863465 | O82: 0.010653502 | P82: 0.084592162
A83: ENSMUST00000175975.8 | B83: ENSMUSG00000029705.17 | C83: OTTMUSG00000040141.5 | D83: OTTMUST00000104344.2 | E83: Cux1-204 | F83: Cux1 | G83: 10945 | H83: protein_coding | I83: 14.51812506 | J83: 92.35824118 | K83: 6.361581872 | L83: 2.669385551 | M83: 1.035591103 | N83: 2.577644345 | O83: 0.009947632 | P83: 0.081133943
A84: ENSMUST00000202169.1 | B84: ENSMUSG00000029135.10 | C84: OTTMUSG00000055218.2 | D84: OTTMUST00000136750.1 | E84: Fosl2-203 | F84: Fosl2 | G84: 1707 | H84: retained_intron | I84: 14.96638675 | J84: 47.92717348 | K84: 3.202320926 | L84: 1.679117897 | M84: 0.43412885 | N84: 3.867786942 | O84: 0.000109828 | P84: 0.004153135
A85: ENSMUST00000049060.7 | B85: ENSMUSG00000036403.15 | C85: OTTMUSG00000026443.1 | D85: - | E85: Cep135-201 | F85: Cep135 | G85: 5313 | H85: protein_coding | I85: 14.983079 | J85: 57.63882247 | K85: 3.846927754 | L85: 1.943706736 | M85: 3.729880744 | N85: 0.521117663 | O85: 0.602284807 | P85: 0.817502667
A86: ENSMUST00000185434.6 | B86: ENSMUSG00000034157.12 | C86: OTTMUSG00000047415.3 | D86: OTTMUST00000122450.1 | E86: Cipc-202 | F86: Cipc | G86: 2695 | H86: nonsense_mediated_decay | I86: 15.07608383 | J86: 47.59571991 | K86: 3.157034707 | L86: 1.658570121 | M86: 0.379557628 | N86: 4.369745191 | O86: 1.24E-05 | P86: 0.000870168
A87: ENSMUST00000161317.1 | B87: ENSMUSG00000024231.15 | C87: OTTMUSG00000034308.3 | D87: OTTMUST00000087270.2 | E87: Cul2-204 | F87: Cul2 | G87: 1909 | H87: protein_coding | I87: 15.15932535 | J87: 57.12904835 | K87: 3.768574593 | L87: 1.914018949 | M87: 1.191098994 | N87: 1.606935241 | O87: 0.108068575 | P87: 0.33165777
A88: ENSMUST00000172836.1 | B88: ENSMUSG00000028960.18 | C88: OTTMUSG00000010171.7 | D88: OTTMUST00000097703.1 | E88: Ube4b-210 | F88: Ube4b | G88: 3554 | H88: nonsense_mediated_decay | I88: 15.20124893 | J88: 53.47277949 | K88: 3.517656985 | L88: 1.814614809 | M88: 0.673531016 | N88: 2.694181509 | O88: 0.007056173 | P88: 0.065547118
A89: ENSMUST00000212376.2 | B89: ENSMUSG00000025558.17 | C89: OTTMUSG00000061831.2 | D89: OTTMUST00000150869.2 | E89: Dock9-208 | F89: Dock9 | G89: 8107 | H89: protein_coding | I89: 15.22072289 | J89: 64.14472477 | K89: 4.214302121 | L89: 2.075293744 | M89: 1.153371657 | N89: 1.799327851 | O89: 0.071966835 | P89: 0.264280919
A90: ENSMUST00000145027.7 | B90: ENSMUSG00000037020.16 | C90: OTTMUSG00000024362.6 | D90: OTTMUST00000059684.4 | E90: Wdr62-205 | F90: Wdr62 | G90: 4768 | H90: nonsense_mediated_decay | I90: 15.24842168 | J90: 56.81955736 | K90: 3.726258267 | L90: 1.897727671 | M90: 1.084551366 | N90: 1.749781273 | O90: 0.080156063 | P90: 0.279557563
A91: ENSMUST00000177035.7 | B91: ENSMUSG00000022377.16 | C91: OTTMUSG00000042047.6 | D91: OTTMUST00000110276.2 | E91: Asap1-215 | F91: Asap1 | G91: 3228 | H91: protein_coding | I91: 15.60498268 | J91: 78.88125505 | K91: 5.054876168 | L91: 2.33767575 | M91: 0.814949897 | N91: 2.868490146 | O91: 0.00412436 | P91: 0.046806193
A92: ENSMUST00000232137.1 | B92: ENSMUSG00000053774.9 | C92: OTTMUSG00000071371.1 | D92: OTTMUST00000172768.1 | E92: Ubxn7-203 | F92: Ubxn7 | G92: 4384 | H92: protein_coding | I92: 15.61826804 | J92: 76.69871809 | K92: 4.910833768 | L92: 2.295967988 | M92: 0.524103622 | N92: 4.380751995 | O92: 1.18E-05 | P92: 0.000834716
A93: ENSMUST00000215784.1 | B93: ENSMUSG00000052698.15 | C93: OTTMUSG00000062653.2 | D93: OTTMUST00000152610.1 | E93: Tln2-207 | F93: Tln2 | G93: 8330 | H93: protein_coding | I93: 15.81191194 | J93: 240.2435131 | K93: 15.1938307 | L93: 3.925413746 | M93: 2.150533019 | N93: 1.825321309 | O93: 0.067952556 | P93: 0.256083449
A94: ENSMUST00000167866.1 | B94: ENSMUSG00000032279.11 | C94: OTTMUSG00000063242.1 | D94: - | E94: Idh3a-201 | F94: Idh3a | G94: 2403 | H94: protein_coding | I94: 15.96428256 | J94: 54.69646553 | K94: 3.426177488 | L94: 1.77659989 | M94: 2.660896149 | N94: 0.667669759 | O94: 0.504344418 | P94: 0.75569064
A95: ENSMUST00000203519.2 | B95: ENSMUSG00000045095.16 | C95: OTTMUSG00000057755.4 | D95: OTTMUST00000141939.2 | E95: Magi1-205 | F95: Magi1 | G95: 3920 | H95: protein_coding | I95: 16.03680526 | J95: 55.64040003 | K95: 3.469543909 | L95: 1.794746025 | M95: 1.207082471 | N95: 1.486846234 | O95: 0.137055427 | P95: 0.381744568
A96: ENSMUST00000039796.13 | B96: ENSMUSG00000033416.15 | C96: OTTMUSG00000031798.3 | D96: OTTMUST00000078804.1 | E96: Gucd1-201 | F96: Gucd1 | G96: 3500 | H96: protein_coding | I96: 16.04289716 | J96: 57.61851705 | K96: 3.591528169 | L96: 1.844597831 | M96: 0.689966627 | N96: 2.673459497 | O96: 0.007507334 | P96: 0.068399921
A97: ENSMUST00000177283.7 | B97: ENSMUSG00000021996.16 | C97: OTTMUSG00000042019.3 | D97: OTTMUST00000110139.2 | E97: Esd-210 | F97: Esd | G97: 794 | H97: protein_coding | I97: 16.13187399 | J97: 84.41797886 | K97: 5.232992702 | L97: 2.387636247 | M97: 0.403234825 | N97: 5.921205453 | O97: 3.20E-09 | P97: 8.03E-07
A98: ENSMUST00000177074.7 | B98: ENSMUSG00000032570.17 | C98: OTTMUSG00000042223.15 | D98: OTTMUST00000110898.2 | E98: Atp2c1-216 | F98: Atp2c1 | G98: 2664 | H98: protein_coding | I98: 16.35933408 | J98: 104.5111992 | K98: 6.388475146 | L98: 2.675471618 | M98: 1.028907927 | N98: 2.600302271 | O98: 0.009314168 | P98: 0.077933873
A99: ENSMUST00000109786.7 | B99: ENSMUSG00000041164.15 | C99: OTTMUSG00000000781.1 | D99: OTTMUST00000001530.1 | E99: Zmiz2-204 | F99: Zmiz2 | G99: 4319 | H99: protein_coding | I99: 16.58880156 | J99: 48.28477462 | K99: 2.910684924 | L99: 1.541358679 | M99: 1.142494171 | N99: 1.349117324 | O99: 0.177299284 | P99: 0.441812852
A100: ENSMUST00000177642.7 | B100: ENSMUSG00000005506.16 | C100: OTTMUSG00000014337.1 | D100: - | E100: Celf1-214 | F100: Celf1 | G100: 7806 | H100: protein_coding | I100: 16.61253334 | J100: 75.66462464 | K100: 4.554671048 | L100: 2.187346862 | M100: 2.706073964 | N100: 0.80831008 | O100: 0.418912101 | P100: 0.690706951
A101: ENSMUST00000126248.7 | B101: ENSMUSG00000027642.15 | C101: OTTMUSG00000016167.4 | D101: OTTMUST00000038677.1 | E101: Rpn2-205 | F101: Rpn2 | G101: 1944 | H101: processed_transcript | I101: 16.62911834 | J101: 112.9692951 | K101: 6.793462696 | L101: 2.764147118 | M101: 1.093630532 | N101: 2.527496295 | O101: 0.011487904 | P101: 0.088773547
A102: ENSMUST00000139956.1 | B102: ENSMUSG00000025485.13 | C102: OTTMUSG00000023444.2 | D102: OTTMUST00000056997.1 | E102: Ric8a-204 | F102: Ric8a | G102: 796 | H102: processed_transcript | I102: 16.65695824 | J102: 52.9259949 | K102: 3.177410554 | L102: 1.667851513 | M102: 1.166476429 | N102: 1.429820159 | O102: 0.152768642 | P102: 0.406466246
A103: ENSMUST00000120512.7 | B103: ENSMUSG00000041390.18 | C103: OTTMUSG00000021421.5 | D103: OTTMUST00000071256.1 | E103: Mdfic-202 | F103: Mdfic | G103: 1871 | H103: protein_coding | I103: 16.67442946 | J103: 53.90182335 | K103: 3.232603759 | L103: 1.692696678 | M103: 0.561602098 | N103: 3.014049779 | O103: 0.002577855 | P103: 0.033992833
A104: ENSMUST00000128861.2 | B104: ENSMUSG00000040596.15 | C104: OTTMUSG00000026882.5 | D104: OTTMUST00000066483.3 | E104: Pogk-202 | F104: Pogk | G104: 4848 | H104: protein_coding | I104: 16.85017116 | J104: 51.04826266 | K104: 3.02953971 | L104: 1.599098616 | M104: 1.270631942 | N104: 1.258506546 | O104: 0.208208622 | P104: 0.482697473
A105: ENSMUST00000125265.1 | B105: ENSMUSG00000022185.19 | C105: OTTMUSG00000033084.6 | D105: OTTMUST00000082678.3 | E105: Acin1-206 | F105: Acin1 | G105: 947 | H105: protein_coding | I105: 16.96330399 | J105: 51.79236196 | K105: 3.05320013 | L105: 1.610322158 | M105: 1.197725763 | N105: 1.344483193 | O105: 0.178792188 | P105: 0.443488215
A106: ENSMUST00000150508.7 | B106: ENSMUSG00000027215.13 | C106: OTTMUSG00000014545.19 | D106: OTTMUST00000034512.15 | E106: Cd82-211 | F106: Cd82 | G106: 647 | H106: protein_coding | I106: 17.19634767 | J106: 47.58105958 | K106: 2.766928216 | L106: 1.468285216 | M106: 0.493739355 | N106: 2.973806325 | O106: 0.002941307 | P106: 0.037203006
A107: ENSMUST00000099457.3 | B107: ENSMUSG00000005802.12 | C107: OTTMUSG00000015670.1 | D107: OTTMUST00000037231.1 | E107: Slc30a4-202 | F107: Slc30a4 | G107: 3170 | H107: protein_coding | I107: 17.24461422 | J107: 47.01201897 | K107: 2.7261856 | L107: 1.446883785 | M107: 0.5377933 | N107: 2.690408723 | O107: 0.007136455 | P107: 0.066071768
A108: ENSMUST00000201883.3 | B108: ENSMUSG00000039191.12 | C108: OTTMUSG00000054613.3 | D108: OTTMUST00000135394.2 | E108: Rbpj-207 | F108: Rbpj | G108: 4961 | H108: protein_coding | I108: 17.2619837 | J108: 64.41117133 | K108: 3.731388723 | L108: 1.899712663 | M108: 0.371804417 | N108: 5.109440817 | O108: 3.23E-07 | P108: 4.59E-05
A109: ENSMUST00000022328.13 | B109: ENSMUSG00000021798.14 | C109: OTTMUSG00000069987.3 | D109: OTTMUST00000169436.1 | E109: Ldb3-202 | F109: Ldb3 | G109: 2468 | H109: protein_coding | I109: 17.35262255 | J109: 52.54560485 | K109: 3.028107406 | L109: 1.598416378 | M109: 2.633130647 | N109: 0.607040285 | O109: 0.543824178 | P109: 0.780091748
A110: ENSMUST00000232721.1 | B110: ENSMUSG00000062078.15 | C110: OTTMUSG00000072108.1 | D110: OTTMUST00000174403.1 | E110: Qk-203 | F110: Qk | G110: 755 | H110: retained_intron | I110: 17.39507546 | J110: 53.87264103 | K110: 3.097005309 | L110: 1.630873856 | M110: 3.729628959 | N110: 0.437275095 | O110: 0.661911855 | P110: 0.85208782
A111: ENSMUST00000135227.1 | B111: ENSMUSG00000037907.16 | C111: OTTMUSG00000008176.4 | D111: OTTMUST00000018566.2 | E111: Ankrd13b-204 | F111: Ankrd13b | G111: 1662 | H111: retained_intron | I111: 17.49329667 | J111: 53.57837194 | K111: 3.06279445 | L111: 1.614848548 | M111: 0.760697444 | N111: 2.1228526 | O111: 0.033766206 | P111: 0.169114598
A112: ENSMUST00000205760.1 | B112: ENSMUSG00000052707.8 | C112: OTTMUSG00000058124.1 | D112: OTTMUST00000142733.1 | E112: Tnrc6a-205 | F112: Tnrc6a | G112: 5223 | H112: protein_coding | I112: 17.58490101 | J112: 71.43026633 | K112: 4.062022658 | L112: 2.022198287 | M112: 1.13262806 | N112: 1.785403663 | O112: 0.074195865 | P112: 0.268091845
A113: ENSMUST00000116415.8 | B113: ENSMUSG00000031816.15 | C113: OTTMUSG00000027534.6 | D113: OTTMUST00000068163.2 | E113: Mthfsd-202 | F113: Mthfsd | G113: 1520 | H113: protein_coding | I113: 17.63384108 | J113: 47.19907276 | K113: 2.676618926 | L113: 1.420411755 | M113: 1.109436996 | N113: 1.280299612 | O113: 0.200439784 | P113: 0.472399275
A114: ENSMUST00000187429.3 | B114: ENSMUSG00000030213.12 | C114: OTTMUSG00000047948.7 | D114: OTTMUST00000123289.4 | E114: Atf7ip-207 | F114: Atf7ip | G114: 3018 | H114: protein_coding | I114: 17.84470781 | J114: 54.29445564 | K114: 3.042608275 | L114: 1.605308604 | M114: 0.930999258 | N114: 1.724285589 | O114: 0.0846563 | P114: 0.289074725
A115: ENSMUST00000176262.7 | B115: ENSMUSG00000045098.18 | C115: OTTMUSG00000017297.7 | D115: OTTMUST00000104295.1 | E115: Kmt5b-213 | F115: Kmt5b | G115: 3933 | H115: protein_coding | I115: 17.86786701 | J115: 97.46034278 | K115: 5.45450348 | L115: 2.447447875 | M115: 2.579236418 | N115: 0.948904047 | O115: 0.342669416 | P115: 0.626293206
A116: ENSMUST00000171564.7 | B116: ENSMUSG00000040354.14 | C116: OTTMUSG00000032541.2 | D116: - | E116: Mars-206 | F116: Mars | G116: 2962 | H116: protein_coding | I116: 17.94463905 | J116: 107.6351452 | K116: 5.998178338 | L116: 2.584524417 | M116: 3.728487832 | N116: 0.69318301 | O116: 0.488194709 | P116: 0.744013311
A117: ENSMUST00000201981.1 | B117: ENSMUSG00000005299.6 | C117: OTTMUSG00000021523.6 | D117: OTTMUST00000137806.1 | E117: Letm1-206 | F117: Letm1 | G117: 747 | H117: processed_transcript | I117: 18.0407147 | J117: 47.12995161 | K117: 2.612421537 | L117: 1.385387707 | M117: 1.138243207 | N117: 1.217128025 | O117: 0.223555509 | P117: 0.501449617
A118: ENSMUST00000119504.7 | B118: ENSMUSG00000025616.14 | C118: OTTMUSG00000026485.3 | D118: OTTMUST00000065485.1 | E118: Usp16-202 | F118: Usp16 | G118: 2562 | H118: protein_coding | I118: 18.0458018 | J118: 54.02205951 | K118: 2.99360816 | L118: 1.581885396 | M118: 2.607785237 | N118: 0.606601101 | O118: 0.544115669 | P118: 0.780189339
A119: ENSMUST00000111669.8 | B119: ENSMUSG00000015829.13 | C119: OTTMUSG00000050612.2 | D119: - | E119: Tnr-201 | F119: Tnr | G119: 4424 | H119: protein_coding | I119: 18.59498601 | J119: 49.28737218 | K119: 2.650573232 | L119: 1.406304401 | M119: 0.441091184 | N119: 3.188239648 | O119: 0.001431418 | P119: 0.023244716
A120: ENSMUST00000130858.7 | B120: ENSMUSG00000042613.9 | C120: OTTMUSG00000022073.2 | D120: OTTMUST00000052416.2 | E120: Pbxip1-202 | F120: Pbxip1 | G120: 847 | H120: protein_coding | I120: 18.6090018 | J120: 49.11330519 | K120: 2.63922298 | L120: 1.400113245 | M120: 0.604315672 | N120: 2.316857414 | O120: 0.0205115 | P120: 0.12580578
A121: ENSMUST00000177595.8 | B121: ENSMUSG00000021065.16 | C121: OTTMUSG00000065316.1 | D121: OTTMUST00000159139.1 | E121: Fut8-203 | F121: Fut8 | G121: 2980 | H121: protein_coding | I121: 18.69641486 | J121: 62.85755266 | K121: 3.362011012 | L121: 1.74932445 | M121: 0.904180338 | N121: 1.934707466 | O121: 0.053026204 | P121: 0.222463275
A122: ENSMUST00000047348.10 | B122: ENSMUSG00000037617.12 | C122: OTTMUSG00000070317.1 | D122: OTTMUST00000170153.1 | E122: Spag1-201 | F122: Spag1 | G122: 3646 | H122: protein_coding | I122: 18.90093197 | J122: 64.47635672 | K122: 3.411279234 | L122: 1.770312853 | M122: 3.729068102 | N122: 0.474733313 | O122: 0.634977071 | P122: 0.836964196
A123: ENSMUST00000200271.4 | B123: ENSMUSG00000027677.17 | C123: OTTMUSG00000026490.5 | D123: OTTMUST00000065504.2 | E123: Ttc14-211 | F123: Ttc14 | G123: 2724 | H123: protein_coding | I123: 18.92147087 | J123: 51.17799129 | K123: 2.704757556 | L123: 1.435499282 | M123: 1.132863171 | N123: 1.267142686 | O123: 0.205104275 | P123: 0.478611312
A124: ENSMUST00000232851.1 | B124: ENSMUSG00000024049.15 | C124: OTTMUSG00000072610.1 | D124: OTTMUST00000175763.1 | E124: Myom1-205 | F124: Myom1 | G124: 4059 | H124: retained_intron | I124: 19.05874917 | J124: 48.03330088 | K124: 2.52027562 | L124: 1.333581517 | M124: 0.468105805 | N124: 2.848889082 | O124: 0.004387217 | P124: 0.048594942
A125: ENSMUST00000227791.1 | B125: ENSMUSG00000064210.7 | C125: OTTMUSG00000069748.2 | D125: OTTMUST00000168719.1 | E125: Ano6-208 | F125: Ano6 | G125: 3149 | H125: protein_coding | I125: 19.06747863 | J125: 72.30174289 | K125: 3.791887973 | L125: 1.922916342 | M125: 0.389016859 | N125: 4.94301545 | O125: 7.69E-07 | P125: 9.87E-05
A126: ENSMUST00000190785.6 | B126: ENSMUSG00000032712.16 | C126: OTTMUSG00000026189.7 | D126: OTTMUST00000122994.3 | E126: Resf1-210 | F126: Resf1 | G126: 4152 | H126: protein_coding | I126: 19.11722796 | J126: 53.05691 | K126: 2.775345365 | L126: 1.472667312 | M126: 0.378644182 | N126: 3.889317155 | O126: 0.000100527 | P126: 0.003874093
A127: ENSMUST00000207998.1 | B127: ENSMUSG00000066406.15 | C127: OTTMUSG00000034140.2 | D127: OTTMUST00000086451.1 | E127: Akap13-208 | F127: Akap13 | G127: 1269 | H127: protein_coding | I127: 19.12693068 | J127: 55.05240433 | K127: 2.878266526 | L127: 1.525200191 | M127: 0.50234104 | N127: 3.036184723 | O127: 0.002395925 | P127: 0.032734707
A128: ENSMUST00000219099.1 | B128: ENSMUSG00000025358.16 | C128: OTTMUSG00000065124.1 | D128: OTTMUST00000158710.1 | E128: Cdk2-204 | F128: Cdk2 | G128: 2971 | H128: retained_intron | I128: 19.30773416 | J128: 57.36252102 | K128: 2.970960784 | L128: 1.570929562 | M128: 1.147955534 | N128: 1.368458547 | O128: 0.171168589 | P128: 0.433417545
A129: ENSMUST00000114750.1 | B129: ENSMUSG00000022812.14 | C129: OTTMUSG00000016276.5 | D129: OTTMUST00000039049.2 | E129: Gsk3b-202 | F129: Gsk3b | G129: 1750 | H129: protein_coding | I129: 19.39518243 | J129: 66.78709769 | K129: 3.443489018 | L129: 1.783871076 | M129: 0.65573128 | N129: 2.720430044 | O129: 0.006519707 | P129: 0.06234354
A130: ENSMUST00000049378.14 | B130: ENSMUSG00000032735.14 | C130: - | D130: - | E130: Ablim3-201 | F130: Ablim3 | G130: 4532 | H130: protein_coding | I130: 19.44135592 | J130: 66.33902003 | K130: 3.412263029 | L130: 1.770728859 | M130: 1.353833164 | N130: 1.307937276 | O130: 0.190894585 | P130: 0.459468301
A131: ENSMUST00000150768.7 | B131: ENSMUSG00000034327.17 | C131: OTTMUSG00000033570.2 | D131: OTTMUST00000084545.1 | E131: Kctd9-204 | F131: Kctd9 | G131: 1302 | H131: protein_coding | I131: =(J131/K131) -> 19.65080083 | J131: 82.52324503 | K131: =2^L131 -> 4.199485087 | L131: 2.070212445 | M131: 1.077341446 | N131: 1.921593617 | O131: 0.054656912 | P131: 0.226605935
A132: ENSMUST00000171479.7 | B132: ENSMUSG00000026409.14 | C132: OTTMUSG00000049608.1 | D132: OTTMUST00000126395.1 | E132: Pfkfb2-204 | F132: Pfkfb2 | G132: 3342 | H132: protein_coding | I132: 19.67877464 | J132: 49.21479509 | K132: 2.5009075 | L132: 1.322451698 | M132: 0.713070073 | N132: 1.854588697 | O132: 0.063654983 | P132: 0.246613035
A133: ENSMUST00000181236.7 | B133: ENSMUSG00000036112.15 | C133: OTTMUSG00000042658.3 | D133: OTTMUST00000112339.1 | E133: Metap2-211 | F133: Metap2 | G133: 547 | H133: retained_intron | I133: 19.69804918 | J133: 64.09348595 | K133: 3.253798655 | L133: 1.70212498 | M133: 0.332416992 | N133: 5.120451183 | O133: 3.05E-07 | P133: 4.38E-05
A134: ENSMUST00000224611.1 | B134: ENSMUSG00000021420.13 | C134: OTTMUSG00000068046.8 | D134: OTTMUST00000164770.1 | E134: Fars2-208 | F134: Fars2 | G134: 1750 | H134: protein_coding | I134: 19.72170942 | J134: 55.88005788 | K134: 2.833428719 | L134: 1.502548909 | M134: 0.345940986 | N134: 4.343367716 | O134: 1.40E-05 | P134: 0.000950913
A135: ENSMUST00000205663.1 | B135: ENSMUSG00000030096.8 | C135: OTTMUSG00000058000.2 | D135: OTTMUST00000142348.1 | E135: Slc6a6-205 | F135: Slc6a6 | G135: 738 | H135: nonsense_mediated_decay | I135: 19.7429523 | J135: 78.47136686 | K135: 3.974652102 | L135: 1.990828588 | M135: 0.667751583 | N135: 2.981391042 | O135: 0.002869421 | P135: 0.036487231
A136: ENSMUST00000228797.1 | B136: ENSMUSG00000037110.20 | C136: OTTMUSG00000015703.6 | D136: OTTMUST00000169904.1 | E136: Ralgapa2-211 | F136: Ralgapa2 | G136: 8245 | H136: protein_coding | I136: 19.75816765 | J136: 51.02707814 | K136: 2.582581495 | L136: 1.368813875 | M136: 0.538639601 | N136: 2.541242555 | O136: 0.011045926 | P136: 0.086706339
A137: ENSMUST00000149301.7 | B137: ENSMUSG00000050812.18 | C137: OTTMUSG00000007619.3 | D137: OTTMUST00000017486.2 | E137: Ecpas-209 | F137: Ecpas | G137: 4615 | H137: protein_coding | I137: 19.7650394 | J137: 96.29348637 | K137: 4.871909658 | L137: 2.284487381 | M137: 2.579600547 | N137: 0.885597339 | O137: 0.375834546 | P137: 0.65571075
A138: ENSMUST00000126211.1 | B138: ENSMUSG00000061479.15 | C138: OTTMUSG00000031830.4 | D138: OTTMUST00000078921.1 | E138: Snrpa-203 | F138: Snrpa | G138: 968 | H138: protein_coding | I138: 20.03896851 | J138: 54.93989639 | K138: 2.741652913 | L138: 1.455045941 | M138: 2.599895946 | N138: 0.559655452 | O138: 0.575714474 | P138: 0.80037699
A139: ENSMUST00000186999.6 | B139: ENSMUSG00000026153.15 | C139: OTTMUSG00000046269.2 | D139: OTTMUST00000120625.2 | E139: Fam135a-205 | F139: Fam135a | G139: 2931 | H139: protein_coding | I139: 20.0831369 | J139: 63.56891953 | K139: 3.165288364 | L139: 1.662336938 | M139: 2.669536865 | N139: 0.622706118 | O139: 0.533477662 | P139: 0.774141348
A140: ENSMUST00000077821.9 | B140: ENSMUSG00000033697.15 | C140: OTTMUSG00000039938.4 | D140: OTTMUST00000103777.1 | E140: Arhgap39-202 | F140: Arhgap39 | G140: 4494 | H140: protein_coding | I140: 20.13591446 | J140: 50.56588379 | K140: 2.511228576 | L140: 1.328393351 | M140: 1.373078548 | N140: 0.967456197 | O140: 0.333316028 | P140: 0.618217619
A141: ENSMUST00000170801.7 | B141: ENSMUSG00000025198.16 | C141: OTTMUSG00000035208.3 | D141: OTTMUST00000089678.1 | E141: Erlin1-206 | F141: Erlin1 | G141: 3172 | H141: protein_coding | I141: 20.44681354 | J141: 49.2559463 | K141: 2.408979092 | L141: 1.268421872 | M141: 1.153763526 | N141: 1.099377683 | O141: 0.271603361 | P141: 0.556098032
A142: ENSMUST00000088585.9 | B142: ENSMUSG00000016918.15 | C142: OTTMUSG00000047995.3 | D142: OTTMUST00000123380.1 | E142: Sulf1-201 | F142: Sulf1 | G142: 4630 | H142: protein_coding | I142: 20.5492953 | J142: 57.73612951 | K142: 2.809640364 | L142: 1.490385476 | M142: 2.572402486 | N142: 0.579374917 | O142: 0.562336225 | P142: 0.791928611
A143: ENSMUST00000117644.7 | B143: ENSMUSG00000058240.14 | C143: OTTMUSG00000027250.5 | D143: OTTMUST00000067382.1 | E143: Cryzl1-203 | F143: Cryzl1 | G143: 1727 | H143: protein_coding | I143: 20.76828708 | J143: 57.03056115 | K143: 2.746040678 | L143: 1.457352997 | M143: 2.552137732 | N143: 0.571032268 | O143: 0.56797777 | P143: 0.795545168
A144: ENSMUST00000218772.1 | B144: ENSMUSG00000040054.16 | C144: OTTMUSG00000064927.1 | D144: OTTMUST00000158116.1 | E144: Baz2a-204 | F144: Baz2a | G144: 3721 | H144: retained_intron | I144: 20.88888956 | J144: 47.2820088 | K144: 2.263500349 | L144: 1.178555529 | M144: 0.496103159 | N144: 2.375625928 | O144: 0.017519213 | P144: 0.114718867
A145: ENSMUST00000032192.8 | B145: ENSMUSG00000030102.11 | C145: OTTMUSG00000056439.3 | D145: OTTMUST00000139424.1 | E145: Itpr1-201 | F145: Itpr1 | G145: 9870 | H145: protein_coding | I145: 20.93645435 | J145: 79.38048016 | K145: 3.791495869 | L145: 1.922767151 | M145: 1.179778355 | N145: 1.629769815 | O145: 0.103150156 | P145: 0.322924004
A146: ENSMUST00000152978.7 | B146: ENSMUSG00000013033.16 | C146: OTTMUSG00000032839.2 | D146: OTTMUST00000081806.1 | E146: Adgrl1-210 | F146: Adgrl1 | G146: 5734 | H146: protein_coding | I146: 20.94414115 | J146: 65.66952948 | K146: 3.135460605 | L146: 1.648677393 | M146: 0.566667526 | N146: 2.909426279 | O146: 0.003620928 | P146: 0.042973747
A147: ENSMUST00000105830.8 | B147: ENSMUSG00000028760.16 | C147: OTTMUSG00000009883.5 | D147: OTTMUST00000022911.1 | E147: Eif4g3-204 | F147: Eif4g3 | G147: 3252 | H147: protein_coding | I147: 20.984239 | J147: 49.86520072 | K147: 2.37631685 | L147: 1.248727213 | M147: 0.357241706 | N147: 3.495468736 | O147: 0.00047323 | P147: 0.011133036
A148: ENSMUST00000204719.2 | B148: ENSMUSG00000068328.9 | C148: OTTMUSG00000057842.1 | D148: OTTMUST00000142041.1 | E148: Aup1-212 | F148: Aup1 | G148: 750 | H148: nonsense_mediated_decay | I148: 20.99814424 | J148: 49.04573072 | K148: 2.335717393 | L148: 1.223865728 | M148: 0.559179146 | N148: 2.188682709 | O148: 0.02861991 | P148: 0.153779412
A149: ENSMUST00000136139.7 | B149: ENSMUSG00000038766.16 | C149: OTTMUSG00000022326.1 | D149: OTTMUST00000053220.1 | E149: Gabpb2-205 | F149: Gabpb2 | G149: 8661 | H149: protein_coding | I149: 21.00021589 | J149: 112.4721124 | K149: 5.355759816 | L149: 2.421091263 | M149: 2.678896975 | N149: 0.90376423 | O149: 0.366120433 | P149: 0.648004371
A150: ENSMUST00000182961.1 | B150: ENSMUSG00000004562.16 | C150: OTTMUSG00000043548.6 | D150: OTTMUST00000114279.1 | E150: Arhgef40-222 | F150: Arhgef40 | G150: 2903 | H150: retained_intron | I150: 21.05576551 | J150: 50.19424798 | K150: 2.383871911 | L150: 1.25330672 | M150: 0.471463476 | N150: 2.658332587 | O150: 0.007852835 | P150: 0.070047583
A151: ENSMUST00000135471.1 | B151: ENSMUSG00000031660.13 | C151: OTTMUSG00000017292.1 | D151: OTTMUST00000041931.1 | E151: Brd7-203 | F151: Brd7 | G151: 511 | H151: processed_transcript | I151: 21.05686137 | J151: 61.30291469 | K151: 2.911303523 | L151: 1.541665258 | M151: 1.142468001 | N151: 1.349416577 | O151: 0.177203199 | P151: 0.44166569
A152: ENSMUST00000174759.7 | B152: ENSMUSG00000028073.15 | C152: OTTMUSG00000036958.7 | D152: OTTMUST00000094975.1 | E152: Pear1-216 | F152: Pear1 | G152: 3554 | H152: protein_coding | I152: 21.05971432 | J152: 53.95093427 | K152: 2.561807508 | L152: 1.357162077 | M152: 1.144933343 | N152: 1.185363398 | O152: 0.235873797 | P152: 0.515794329
A153: ENSMUST00000175741.7 | B153: ENSMUSG00000018733.10 | C153: OTTMUSG00000000912.5 | D153: OTTMUST00000110950.2 | E153: Pex12-205 | F153: Pex12 | G153: 2337 | H153: protein_coding | I153: 21.20116086 | J153: 48.34866896 | K153: 2.28047272 | L153: 1.189332912 | M153: 2.748557777 | N153: 0.432711629 | O153: 0.665224281 | P153: 0.853948513
A154: ENSMUST00000223981.1 | B154: ENSMUSG00000021733.10 | C154: OTTMUSG00000068990.2 | D154: OTTMUST00000166875.1 | E154: Slc4a7-207 | F154: Slc4a7 | G154: 3972 | H154: nonsense_mediated_decay | I154: 21.25325637 | J154: 53.78142442 | K154: 2.530502785 | L154: 1.339424062 | M154: 2.57319745 | N154: 0.520529065 | O154: 0.602694876 | P154: 0.817634569
A155: ENSMUST00000100193.7 | B155: ENSMUSG00000059248.13 | C155: OTTMUSG00000003788.5 | D155: OTTMUST00000008322.1 | E155: Sept9-203 | F155: Sept9 | G155: 2924 | H155: protein_coding | I155: 21.42985063 | J155: 73.8288594 | K155: 3.445141111 | L155: 1.784563076 | M155: 1.164762634 | N155: 1.532125966 | O155: 0.125491353 | P155: 0.362835123
A156: ENSMUST00000135361.7 | B156: ENSMUSG00000029388.14 | C156: OTTMUSG00000024473.3 | D156: OTTMUST00000060027.2 | E156: Eif2b1-204 | F156: Eif2b1 | G156: 619 | H156: protein_coding | I156: 21.53084753 | J156: 56.55859255 | K156: 2.62686327 | L156: 1.393341109 | M156: 0.374635421 | N156: 3.719192129 | O156: 0.000199861 | P156: 0.006216016
A157: ENSMUST00000153500.7 | B157: ENSMUSG00000005514.14 | C157: OTTMUSG00000029621.7 | D157: OTTMUST00000073478.7 | E157: Por-208 | F157: Por | G157: 918 | H157: protein_coding | I157: 21.56736575 | J157: 49.60606775 | K157: 2.300052232 | L157: 1.201666624 | M157: 0.428691341 | N157: 2.803104493 | O157: 0.005061327 | P157: 0.053494883
A158: ENSMUST00000198382.4 | B158: ENSMUSG00000038023.12 | C158: OTTMUSG00000054960.2 | D158: OTTMUST00000136202.1 | E158: Atp6v0a2-205 | F158: Atp6v0a2 | G158: 3526 | H158: nonsense_mediated_decay | I158: 21.7116333 | J158: 60.24030305 | K158: 2.774563397 | L158: 1.472260768 | M158: 0.795338739 | N158: 1.851111604 | O158: 0.064153499 | P158: 0.247836315
A159: ENSMUST00000038210.11 | B159: ENSMUSG00000036391.16 | C159: OTTMUSG00000005603.3 | D159: OTTMUST00000050097.1 | E159: Sec24a-201 | F159: Sec24a | G159: 3800 | H159: protein_coding | I159: 21.72357741 | J159: 86.73771833 | K159: 3.992791642 | L159: 1.997397789 | M159: 0.596735648 | N159: 3.347207086 | O159: 0.000816302 | P159: 0.016336313
A160: ENSMUST00000144075.1 | B160: ENSMUSG00000019087.13 | C160: OTTMUSG00000017676.6 | D160: OTTMUST00000046896.1 | E160: Atp6ap1-206 | F160: Atp6ap1 | G160: 349 | H160: processed_transcript | I160: 21.72415656 | J160: 53.5055896 | K160: 2.4629536 | L160: 1.300389449 | M160: 0.385198337 | N160: 3.375895805 | O160: 0.000735758 | P160: 0.015396054
A161: ENSMUST00000183011.7 | B161: ENSMUSG00000040225.15 | C161: OTTMUSG00000043447.13 | D161: OTTMUST00000114020.3 | E161: Prrc2c-211 | F161: Prrc2c | G161: 1827 | H161: protein_coding | I161: 21.78678201 | J161: 47.90168524 | K161: 2.198658123 | L161: 1.136623292 | M161: 0.694876432 | N161: 1.635720021 | O161: 0.101898197 | P161: 0.320725887
A162: ENSMUST00000195164.1 | B162: ENSMUSG00000042035.11 | C162: OTTMUSG00000052209.2 | D162: OTTMUST00000131172.1 | E162: Igsf3-202 | F162: Igsf3 | G162: 3876 | H162: protein_coding | I162: 21.86169277 | J162: 81.34380205 | K162: 3.720837306 | L162: 1.89562731 | M162: 0.297864026 | N162: 6.364069322 | O162: 1.96e-10 | P162: 6.79E-08
A163: ENSMUST00000155190.1 | B163: ENSMUSG00000020674.17 | C163: OTTMUSG00000027521.2 | D163: OTTMUST00000068131.1 | E163: Pxdn-205 | F163: Pxdn | G163: 1024 | H163: processed_transcript | I163: 21.86611486 | J163: 47.14629357 | K163: 2.156134909 | L163: 1.10844745 | M163: 0.38149469 | N163: 2.905538346 | O163: 0.003666219 | P163: 0.043317315
A164: ENSMUST00000125325.1 | B164: ENSMUSG00000029505.17 | C164: OTTMUSG00000017135.8 | D164: OTTMUST00000041486.2 | E164: Ep400-206 | F164: Ep400 | G164: 974 | H164: protein_coding | I164: 21.90381431 | J164: 49.96362916 | K164: 2.281046965 | L164: 1.189696151 | M164: 0.637516742 | N164: 1.866141033 | O164: 0.062021636 | P164: 0.243611293
A165: ENSMUST00000204207.1 | B165: ENSMUSG00000045962.16 | C165: OTTMUSG00000031633.14 | D165: OTTMUST00000140149.1 | E165: Wnk1-226 | F165: Wnk1 | G165: 5825 | H165: retained_intron | I165: 21.94646749 | J165: 49.07326047 | K165: 2.236043705 | L165: 1.160948387 | M165: 0.583093668 | N165: 1.991015253 | O165: 0.04647921 | P165: 0.205022478
A166: ENSMUST00000229392.1 | B166: ENSMUSG00000023010.15 | C166: OTTMUSG00000034310.6 | D166: OTTMUST00000171924.1 | E166: Tmbim6-210 | F166: Tmbim6 | G166: 577 | H166: protein_coding | I166: 22.02924442 | J166: 63.48979502 | K166: 2.882068663 | L166: 1.527104707 | M166: 0.856470768 | N166: 1.783020231 | O166: 0.07458301 | P166: 0.268724656
A167: ENSMUST00000137648.7 | B167: ENSMUSG00000024118.14 | C167: OTTMUSG00000032971.2 | D167: OTTMUST00000082211.1 | E167: Tedc2-203 | F167: Tedc2 | G167: 2160 | H167: retained_intron | I167: 22.14465947 | J167: 51.54171396 | K167: 2.32750086 | L167: 1.218781701 | M167: 1.195895702 | N167: 1.01913712 | O167: 0.308137874 | P167: 0.593846258
A168: ENSMUST00000133338.7 | B168: ENSMUSG00000031441.15 | C168: OTTMUSG00000020604.3 | D168: OTTMUST00000048811.2 | E168: Atp11a-207 | F168: Atp11a | G168: 4028 | H168: nonsense_mediated_decay | I168: 22.15933793 | J168: 47.91181716 | K168: 2.16215021 | L168: 1.112466754 | M168: 0.623841471 | N168: 1.783252326 | O168: 0.074545238 | P168: 0.268715058
A169: ENSMUST00000124474.1 | B169: ENSMUSG00000029175.17 | C169: OTTMUSG00000022284.7 | D169: OTTMUST00000053079.2 | E169: Slc35f6-202 | F169: Slc35f6 | G169: 1299 | H169: nonsense_mediated_decay | I169: 22.22377884 | J169: 49.10002984 | K169: 2.209346583 | L169: 1.143619754 | M169: 1.242544663 | N169: 0.920385228 | O169: 0.357371485 | P169: 0.640354973
A170: ENSMUST00000159314.7 | B170: ENSMUSG00000033060.15 | C170: OTTMUSG00000034688.2 | D170: OTTMUST00000088065.1 | E170: Lmo7-205 | F170: Lmo7 | G170: 5774 | H170: protein_coding | I170: 22.38385543 | J170: 67.58161809 | K170: 3.019212588 | L170: 1.594172343 | M170: 1.277006621 | N170: 1.248366545 | O170: 0.211896855 | P170: 0.486974901
A171: ENSMUST00000222763.1 | B171: ENSMUSG00000020982.9 | C171: OTTMUSG00000065761.1 | D171: OTTMUST00000160026.1 | E171: Nemf-212 | F171: Nemf | G171: 1340 | H171: processed_transcript | I171: 22.45771274 | J171: 47.06214739 | K171: 2.095589517 | L171: 1.06735615 | M171: 0.526203762 | N171: 2.028408434 | O171: 0.04251858 | P171: 0.194455661
A172: ENSMUST00000174180.7 | B172: ENSMUSG00000028399.18 | C172: OTTMUSG00000000304.24 | D172: OTTMUST00000095804.2 | E172: Ptprd-218 | F172: Ptprd | G172: 5694 | H172: protein_coding | I172: 22.54106257 | J172: 59.55213193 | K172: 2.641939871 | L172: 1.401597632 | M172: 0.414955204 | N172: 3.377708288 | O172: 0.000730926 | P172: 0.01530837
A173: ENSMUST00000225000.1 | B173: ENSMUSG00000039308.6 | C173: OTTMUSG00000068778.1 | D173: OTTMUST00000166299.1 | E173: Ndst2-205 | F173: Ndst2 | G173: 3661 | H173: protein_coding | I173: 22.62614943 | J173: 51.54110144 | K173: 2.277944005 | L173: 1.187732284 | M173: 1.298026456 | N173: 0.915029334 | O173: 0.36017623 | P173: 0.642984383
A174: ENSMUST00000232005.1 | B174: ENSMUSG00000012114.17 | C174: OTTMUSG00000071290.1 | D174: OTTMUST00000172625.1 | E174: Med15-209 | F174: Med15 | G174: 3118 | H174: retained_intron | I174: 22.80301515 | J174: 53.29913899 | K174: 2.337372433 | L174: 1.224887629 | M174: 0.526539899 | N174: 2.326295938 | O174: 0.020002769 | P174: 0.124098168
A175: ENSMUST00000031655.3 | B175: ENSMUSG00000029650.10 | C175: OTTMUSG00000028765.3 | D175: OTTMUST00000071251.1 | E175: Slc46a3-201 | F175: Slc46a3 | G175: 2434 | H175: protein_coding | I175: 22.89735794 | J175: 49.25718509 | K175: 2.151216976 | L175: 1.105153045 | M175: 1.278688961 | N175: 0.864286061 | O175: 0.387430765 | P175: 0.665430262
A176: ENSMUST00000125583.7 | B176: ENSMUSG00000025583.15 | C176: OTTMUSG00000004025.4 | D176: OTTMUST00000008953.2 | E176: Rptor-203 | F176: Rptor | G176: 2569 | H176: retained_intron | I176: 23.02572466 | J176: 52.06846132 | K176: 2.261316944 | L176: 1.177163213 | M176: 0.364326013 | N176: 3.231070993 | O176: 0.001233273 | P176: 0.021137726
A177: ENSMUST00000130864.8 | B177: ENSMUSG00000041642.18 | C177: OTTMUSG00000026867.6 | D177: OTTMUST00000066456.3 | E177: Kif21b-204 | F177: Kif21b | G177: 9254 | H177: nonsense_mediated_decay | I177: 23.10147634 | J177: 52.78851682 | K177: 2.285071137 | L177: 1.192239079 | M177: 1.156207086 | N177: 1.031163962 | O177: 0.302463937 | P177: 0.587635199
A178: ENSMUST00000107385.1 | B178: ENSMUSG00000020917.17 | C178: OTTMUSG00000006279.2 | D178: OTTMUST00000048854.1 | E178: Acly-202 | F178: Acly | G178: 1741 | H178: protein_coding | I178: 23.1565448 | J178: 55.70313464 | K178: 2.405502855 | L178: 1.266338512 | M178: 0.78626782 | N178: 1.610568918 | O178: 0.107273713 | P178: 0.330666583
A179: ENSMUST00000227428.1 | B179: ENSMUSG00000042548.14 | C179: OTTMUSG00000019852.2 | D179: OTTMUST00000169891.1 | E179: Asxl1-205 | F179: Asxl1 | G179: 6981 | H179: protein_coding | I179: 23.21240465 | J179: 71.12410416 | K179: 3.064055845 | L179: 1.615442592 | M179: 1.203678147 | N179: 1.342088494 | O179: 0.179567304 | P179: 0.444354569
A180: ENSMUST00000198946.1 | B180: ENSMUSG00000029178.14 | C180: OTTMUSG00000055125.4 | D180: OTTMUST00000136506.2 | E180: Klf3-206 | F180: Klf3 | G180: 809 | H180: protein_coding | I180: 23.22845012 | J180: 55.50108795 | K180: 2.389358208 | L180: 1.256623156 | M180: 0.664558497 | N180: 1.890914286 | O180: 0.058635787 | P180: 0.23607708
A181: ENSMUST00000182879.7 | B181: ENSMUSG00000002107.18 | C181: OTTMUSG00000011788.6 | D181: OTTMUST00000113227.1 | E181: Celf2-224 | F181: Celf2 | G181: 2223 | H181: protein_coding | I181: 23.41157784 | J181: 59.25947949 | K181: 2.531204 | L181: 1.339823785 | M181: 1.227605372 | N181: 1.091412449 | O181: 0.275091437 | P181: 0.559446396
A182: ENSMUST00000078404.14 | B182: ENSMUSG00000056851.14 | C182: OTTMUSG00000071249.3 | D182: OTTMUST00000172504.1 | E182: Pcbp2-202 | F182: Pcbp2 | G182: 3222 | H182: protein_coding | I182: 23.43747799 | J182: 66.07075239 | K182: 2.819021416 | L182: 1.495194438 | M182: 0.550486455 | N182: 2.716133023 | O182: 0.006604937 | P182: 0.062933632
A183: ENSMUST00000219203.1 | B183: ENSMUSG00000034602.15 | C183: OTTMUSG00000064544.1 | D183: OTTMUST00000157374.1 | E183: Mon2-207 | F183: Mon2 | G183: 1844 | H183: protein_coding | I183: 23.62800915 | J183: 61.86018481 | K183: 2.618087052 | L183: 1.388513068 | M183: 0.519714868 | N183: 2.671682407 | O183: 0.007547204 | P183: 0.068626228
A184: ENSMUST00000092576.10 | B184: ENSMUSG00000027646.15 | C184: OTTMUSG00000016179.2 | D184: - | E184: Src-202 | F184: Src | G184: 3887 | H184: protein_coding | I184: 23.7855182 | J184: 73.4620745 | K184: 3.088521085 | L184: 1.62691618 | M184: 0.578064865 | N184: 2.81441803 | O184: 0.004886564 | P184: 0.052298812
A185: ENSMUST00000197349.1 | B185: ENSMUSG00000046658.16 | C185: OTTMUSG00000033379.2 | D185: OTTMUST00000136057.1 | E185: Zfp316-203 | F185: Zfp316 | G185: 5912 | H185: retained_intron | I185: 23.78638416 | J185: 50.45414443 | K185: 2.121135524 | L185: 1.084836801 | M185: 0.420977942 | N185: 2.57694452 | O185: 0.009967795 | P185: 0.081209612
A186: ENSMUST00000129349.1 | B186: ENSMUSG00000029723.16 | C186: OTTMUSG00000022818.4 | D186: OTTMUST00000054926.1 | E186: Tsc22d4-206 | F186: Tsc22d4 | G186: 2989 | H186: retained_intron | I186: 23.86866831 | J186: 63.13932354 | K186: 2.64528053 | L186: 1.403420727 | M186: 0.539567993 | N186: 2.601008112 | O186: 0.009295026 | P186: 0.077910343
A187: ENSMUST00000165134.1 | B187: ENSMUSG00000020986.13 | C187: OTTMUSG00000026430.2 | D187: OTTMUST00000091570.1 | E187: Sec23a-204 | F187: Sec23a | G187: 2529 | H187: protein_coding | I187: 23.88346736 | J187: 57.42846477 | K187: 2.404527948 | L187: 1.265753695 | M187: 0.834334209 | N187: 1.517082341 | O187: 0.129245896 | P187: 0.369152401
A188: ENSMUST00000115827.7 | B188: ENSMUSG00000068663.14 | C188: OTTMUSG00000023673.3 | D188: OTTMUST00000057782.1 | E188: Clec16a-205 | F188: Clec16a | G188: 2949 | H188: protein_coding | I188: 23.93695559 | J188: 68.25379257 | K188: 2.85139822 | L188: 1.511669537 | M188: 1.181716975 | N188: 1.27921454 | O188: 0.200821517 | P188: 0.472814668
A189: ENSMUST00000075012.7 | B189: ENSMUSG00000020721.16 | C189: OTTMUSG00000003095.2 | D189: - | E189: Helz-201 | F189: Helz | G189: 6218 | H189: protein_coding | I189: 24.00657651 | J189: 71.50038518 | K189: 2.97836658 | L189: 1.574521333 | M189: 0.676862638 | N189: 2.326205118 | O189: 0.020007611 | P189: 0.124098168
A190: ENSMUST00000074686.9 | B190: ENSMUSG00000044465.19 | C190: OTTMUSG00000029500.3 | D190: - | E190: Fam160a2-202 | F190: Fam160a2 | G190: 3212 | H190: protein_coding | I190: 24.10986818 | J190: 52.04081014 | K190: 2.158485884 | L190: 1.110019658 | M190: 1.234444176 | N190: 0.899206039 | O190: 0.368542924 | P190: 0.649640985
A191: ENSMUST00000176653.1 | B191: ENSMUSG00000054611.16 | C191: OTTMUSG00000039985.5 | D191: OTTMUST00000103837.3 | E191: Kdm2a-212 | F191: Kdm2a | G191: 1076 | H191: protein_coding | I191: 24.1945466 | J191: 48.58786182 | K191: 2.00821543 | L191: 1.005914042 | M191: 0.432948726 | N191: 2.323402245 | O191: 0.020157554 | P191: 0.124559251
A192: ENSMUST00000153832.7 | B192: ENSMUSG00000029416.17 | C192: OTTMUSG00000028813.4 | D192: OTTMUST00000071347.1 | E192: Slc15a4-205 | F192: Slc15a4 | G192: 2673 | H192: nonsense_mediated_decay | I192: 24.20558848 | J192: 62.24284777 | K192: 2.571424687 | L192: 1.3625679 | M192: 1.280423557 | N192: 1.064154039 | O192: 0.287258924 | P192: 0.573004568
A193: ENSMUST00000131786.7 | B193: ENSMUSG00000025261.17 | C193: OTTMUSG00000019367.10 | D193: OTTMUST00000046230.1 | E193: Huwe1-207 | F193: Huwe1 | G193: 2627 | H193: retained_intron | I193: 24.22016329 | J193: 67.31359108 | K193: 2.779237707 | L193: 1.474689233 | M193: 1.257662378 | N193: 1.172563686 | O193: 0.240970819 | P193: 0.52129853
A194: ENSMUST00000159742.7 | B194: ENSMUSG00000033400.14 | C194: OTTMUSG00000034170.10 | D194: OTTMUST00000086638.2 | E194: Agl-203 | F194: Agl | G194: 4344 | H194: protein_coding | I194: 24.24109685 | J194: 119.7824107 | K194: 4.941295001 | L194: 2.304889189 | M194: 0.728020645 | N194: 3.165966794 | O194: 0.001545684 | P194: 0.024514332
A195: ENSMUST00000116341.3 | B195: ENSMUSG00000045973.18 | C195: OTTMUSG00000006722.4 | D195: - | E195: Slc25a51-202 | F195: Slc25a51 | G195: 4438 | H195: protein_coding | I195: =(J195/K195) -> 24.3015519 | J195: 421.8852604 | K195: =2^L195 -> 17.36042464 | L195: 4.117730332 | M195: 2.940921924 | N195: 1.40014949 | O195: 0.161468558 | P195: 0.418722953
A196: ENSMUST00000107283.7 | B196: ENSMUSG00000028136.15 | C196: OTTMUSG00000019563.6 | D196: OTTMUST00000046711.1 | E196: Snx27-202 | F196: Snx27 | G196: 3531 | H196: protein_coding | I196: 24.32251311 | J196: 93.65716279 | K196: 3.850636748 | L196: 1.945097032 | M196: 0.315694975 | N196: 6.161317684 | O196: 7.21E-10 | P196: 2.21E-07
A197: ENSMUST00000212888.1 | B197: ENSMUSG00000055322.15 | C197: OTTMUSG00000047279.7 | D197: OTTMUST00000150486.1 | E197: Tns1-222 | F197: Tns1 | G197: 5643 | H197: protein_coding | I197: 24.33222931 | J197: 64.88976257 | K197: 2.666823568 | L197: 1.415122382 | M197: 0.347789459 | N197: 4.06890533 | O197: 4.72E-05 | P197: 0.002337717
A198: ENSMUST00000124467.7 | B198: ENSMUSG00000034269.12 | C198: OTTMUSG00000017316.2 | D198: OTTMUST00000042083.1 | E198: Setd5-204 | F198: Setd5 | G198: 3848 | H198: retained_intron | I198: 24.54862676 | J198: 53.0583164 | K198: 2.161355783 | L198: 1.111936575 | M198: 0.446500139 | N198: 2.490338698 | O198: 0.012762141 | P198: 0.094493945
A199: ENSMUST00000035646.10 | B199: ENSMUSG00000039943.16 | C199: OTTMUSG00000015959.4 | D199: - | E199: Plcb4-201 | F199: Plcb4 | G199: 3635 | H199: protein_coding | I199: 24.64859891 | J199: 99.62847313 | K199: 4.04195279 | L199: 2.015052471 | M199: 1.231266907 | N199: 1.636568367 | O199: 0.10172069 | P199: 0.320462042
A200: ENSMUST00000172956.7 | B200: ENSMUSG00000020173.17 | C200: OTTMUSG00000005168.8 | D200: OTTMUST00000096064.1 | E200: Cobl-209 | F200: Cobl | G200: 4488 | H200: nonsense_mediated_decay | I200: 24.73631429 | J200: 54.8352101 | K200: 2.216789836 | L200: 1.148472001 | M200: 3.728905849 | N200: 0.307991686 | O200: 0.758088658 | P200: 0.900652669
... 4299 more rows
